fUSD/lending_fUSD_20250221
["ID","MTS","AMOUNT","RATE_DAILY","PERIOD"]
[353913813,1740135032688,-320.66312088,0.00012399,3]
[353913817,1740135038089,-4440.58605304,0.000124,3]
[353913829,1740135040067,-387.78910512,0.000124,3]
[353913830,1740135040080,-1974.54793563,0.000124,3]
[353913831,1740135040483,-19754.40036225,0.000124,3]
[353913837,1740135043111,-2496357.18878119,0.000124,3]
[353913838,1740135043191,-1353.1,0.000124,3]
[353913839,1740135045955,-1772.932785,0.00012299,2]
[353913840,1740135046167,-5727.067215,0.00012299,2]
[353913841,1740135046179,-22545.5625134,0.000124,3]
[353913842,1740135046271,-1406.6052,0.000124,3]
[353913843,1740135046286,-515.4000007,0.000124,3]
[353913847,1740135249261,263.13,0.000139,31]
[353913848,1740135249321,263.13,0.000139,31]
[353913849,1740135249376,263.13,0.000139,31]
[353913850,1740135249442,263.13,0.000139,31]
[353913851,1740135249501,263.13,0.000139,31]
[353913852,1740135249559,263.13,0.000139,31]
[353913853,1740135249615,263.13,0.000139,31]
[353913854,1740135249676,263.13,0.000139,31]
[353913855,1740135249764,263.13,0.000139,31]
[353913856,1740135249808,263.13,0.000139,31]
[353913857,1740135249858,263.13,0.000139,31]
[353913858,1740135249918,263.13,0.000139,31]
[353913859,1740135249993,263.13,0.000139,31]
[353913860,1740135250039,263.13,0.000139,31]
[353913861,1740135250249,263.13,0.000139,31]
[353913862,1740135250278,263.13,0.000139,31]
[353913867,1740135677748,367.0,0.0002,120]
[353913868,1740135683000,4645.75274623,0.00017,45]
[353913869,1740135861270,221.05,0.000139,31]
[353913870,1740135861362,221.05,0.000139,31]
[353913871,1740135861391,221.05,0.000139,31]
[353913872,1740135861440,221.05,0.000139,31]
[353913873,1740135861661,221.05,0.000139,31]
[353913874,1740135861695,221.05,0.000139,31]
[353913875,1740135861744,221.05,0.000139,31]
[353913876,1740135861782,221.05,0.000139,31]
[353913877,1740135861821,221.05,0.000139,31]
[353913878,1740135861852,221.05,0.000139,31]
[353913879,1740135861892,221.05,0.000139,31]
[353913880,1740135861940,221.05,0.000139,31]
[353913881,1740135861994,221.05,0.000139,31]
[353913882,1740135862056,221.05,0.000139,31]
[353913883,1740135862123,221.05,0.000139,31]
[353913884,1740135862178,221.05,0.000139,31]
[353913885,1740135942287,20000.0,0.000165,60]
[353913899,1740136002289,157.47,8.767e-05,2]
[353913900,1740136126040,-467.65,9.918e-05,2]
[353913901,1740136126063,-500.0,0.00011064,2]
[353913902,1740136126084,-500.0,0.00011064,2]
[353913903,1740136126107,-500.0,0.00011064,2]
[353913904,1740136126131,-1462.9,0.00011808,2]
[353913905,1740136126153,-339.68,0.00012052,2]
[353913906,1740136126177,-250.0,0.00012101,2]
[353913907,1740136126200,-467.65,0.00012182,2]
[353913908,1740136126222,-5512.12,0.0001221,2]
[353913934,1740136232254,-395.39999862,0.00011064,2]
[353913935,1740136232301,-104.60000138,0.00011064,2]
[353913936,1740136232311,-310.49721643,0.00011064,2]
[353913937,1740136232323,-189.50278357,0.00011064,2]
[353913938,1740136232333,-119.30464043,0.00011064,2]
[353913939,1740136232356,-380.69535957,0.00011064,2]
[353913940,1740136232367,-466.65,0.0001221,2]
[353913941,1740136232377,-500.0,0.00012299,2]
[353913942,1740136232387,-539.03548864,0.00012299,2]
[353913943,1740136232399,-736.12951136,0.00012299,2]
[353913944,1740136232408,-1090.01942932,0.000123,2]
[353913945,1740136232419,-4344.05670002,0.000123,2]
[353913946,1740136232431,-2065.92387066,0.000123,2]
[353913947,1740136232440,-162.09924389,0.000123,2]
[353913948,1740136232449,-1000.0,0.000123,2]
[353913949,1740136232459,-164.76273674,0.000123,2]
[353913950,1740136232468,-1133.7616402,0.000123,2]
[353913951,1740136232479,-589.48673286,0.000123,2]
[353913952,1740136232489,-1000.0,0.00012326,2]
[353913953,1740136232498,-1182.0,0.00012328,3]
[353913954,1740136232508,-200.00000001,0.00012329,2]
[353913955,1740136232517,-165.17521484,0.00012373,2]
[353913956,1740136232527,-162.09924375,0.00012374,2]
[353913957,1740136232536,-200.0,0.00012393,2]
[353913958,1740136232545,-545.87338,0.00012398,2]
[353913959,1740136232554,-500.0,0.00012399,2]
[353913960,1740136232563,-244.89870791,0.00012399,2]
[353913962,1740136232573,-500.0,0.00012399,2]
[353913964,1740136232583,-204.08837117,0.00012399,2]
[353913966,1740136232592,-500.0,0.00012399,2]
[353913968,1740136232601,-500.0,0.00012399,2]
[353913970,1740136232611,-1629.45034946,0.000124,3]
[353913972,1740136232622,-4822.95,0.000124,3]
[353914025,1740136238106,-9694.15755793,0.000124,3]
[353914026,1740136238212,-3636.17385645,0.000124,3]
[353914027,1740136238533,-9826.98400493,0.000124,3]
[353914034,1740136243371,-10000.0,0.000124,3]
[353914035,1740136243390,-568.57925807,0.000124,3]
[353914036,1740136243438,-23087.68327339,0.000124,3]
[353914050,1740136246307,-175.65,0.00012148,2]
[353914051,1740136246317,-2581.9328052,0.000124,3]
[353914052,1740136249212,-10000.0,0.000124,3]
[353914053,1740136250278,-10000.0,0.000124,3]
[353914054,1740136251356,-10000.0,0.000124,3]
[353914055,1740136252961,-10000.0,0.000124,3]
[353914056,1740136255469,-170.13056139,0.000123,2]
[353914057,1740136255492,-9829.86943861,0.000124,3]
[353914059,1740136286928,-10000.0,0.000124,3]
[353914065,1740136473404,185.7,0.000139,31]
[353914066,1740136473505,30.38,0.000139,31]
[353914101,1740137432325,-478.09,9.872e-05,2]
[353914102,1740137432335,-550.0,0.0001,2]
[353914103,1740137432344,-2875.96549643,0.0001,2]
[353914104,1740137432379,-319.55972965,0.0001,2]
[353914105,1740137432391,-261.61765401,0.0001,2]
[353914106,1740137432540,-1365.199996,0.0001,2]
[353914107,1740137432615,-413.89043632,0.0001,2]
[353914108,1740137432705,-6804.0,0.0001,2]
[353914109,1740137432717,-1024.56,0.0001,2]
[353914110,1740137432727,-87947.38513494,0.0001,2]
[353914111,1740137432745,-140510.53908466,0.0001,2]
[353914112,1740137432756,-146514.72381078,0.0001,2]
[353914674,1740137438282,-89513.32953446,0.0001,2]
[353914676,1740137438292,-500.0,0.00011064,2]
[353914678,1740137438301,-500.0,0.00011064,2]
[353914680,1740137438310,-3312.67054785,0.00011099,2]
[353914682,1740137438319,-3312.67054782,0.00011268,2]
[353914684,1740137438329,-3312.67054782,0.00011572,2]
[353914686,1740137438338,-150.0,0.00011638,2]
[353914688,1740137438349,-1000.0,0.00011728,2]
[353914690,1740137438360,-162.43,0.0001179,2]
[353914692,1740137438369,-3312.67054782,0.00011876,2]
[353914694,1740137438378,-600.0,0.00012,2]
[353914696,1740137438388,-9958.64,0.00012018,2]
[353914698,1740137438397,-249.69,0.00012031,2]
[353914700,1740137438406,-250.0,0.00012122,2]
[353914702,1740137438415,-478.09,0.00012136,2]
[353914704,1740137438424,-387.328,0.00012143,2]
[353914706,1740137438433,-3312.67054782,0.0001218,2]
[353914708,1740137438442,-151.0,0.00012287,2]
[353914710,1740137438452,-94758.94703133,0.000123,3]
[353914713,1740137438472,-1042.82955653,0.000123,3]
[353914715,1740137438483,-15847.11296997,0.000123,3]
[353914902,1740137440387,-1344.63390001,0.000123,3]
[353914908,1740137440439,-705.20017422,0.000123,3]
[353914910,1740137440455,-299.89956351,0.000123,3]
[353914913,1740137440469,-394.04068009,0.000123,3]
[353914916,1740137440491,-387.328,0.000123,3]
[353914919,1740137440506,-256.01258465,0.000123,3]
[353914930,1740137440609,-1133.05,0.000123,3]
[353914936,1740137440655,-63152.49260971,0.000123,3]
[353914948,1740137440761,-573.619998,0.000123,3]
[353914955,1740137440817,-3561.22999996,0.000123,3]
[353914962,1740137440874,-461.584,0.000123,3]
[353914964,1740137440890,-598.51453168,0.000123,3]
[353915072,1740137443384,-2264.33183464,0.000123,3]
[353915073,1740137443439,-68135.62779944,0.000123,3]
[353915074,1740137443454,-49129.46000001,0.000123,3]
[353915075,1740137443546,-679.0120005,0.000123,3]
[353915076,1740137443559,-748.0560267,0.000123,3]
[353915077,1740137443574,-625.982,0.000123,3]
[353915078,1740137443588,-589.0474902,0.000123,3]
[353915079,1740137443603,-112831.61177365,0.000123,3]
[353915080,1740137443616,-2127.5000002,0.000123,3]
[353915085,1740137446297,-256.78750048,0.000123,3]
[353915098,1740137485335,-183.54,0.000139,31]
[353915099,1740137485362,-183.54,0.000139,31]
[353915100,1740137485387,-183.54,0.000139,31]
[353915101,1740137485413,-183.54,0.000139,31]
[353915102,1740137485440,-183.54,0.000139,31]
[353915103,1740137485464,-183.54,0.000139,31]
[353915104,1740137485489,-183.54,0.000139,31]
[353915105,1740137485513,-183.54,0.000139,31]
[353915106,1740137485540,-183.54,0.000139,31]
[353915107,1740137485565,-183.54,0.000139,31]
[353915108,1740137485592,-183.54,0.000139,31]
[353915109,1740137485617,-183.54,0.000139,31]
[353915110,1740137485642,-183.54,0.000139,31]
[353915111,1740137485670,-183.54,0.000139,31]
[353915112,1740137485887,-183.54,0.000139,31]
[353915113,1740137485919,-183.54,0.000139,31]
[353915115,1740137682181,424.91,8.767e-05,2]
[353915117,1740137698155,154.19,0.000139,31]
[353915118,1740137698213,154.19,0.000139,31]
[353915119,1740137698466,154.19,0.000139,31]
[353915120,1740137698505,154.19,0.000139,31]
[353915121,1740137698543,154.19,0.000139,31]
[353915122,1740137698574,154.19,0.000139,31]
[353915123,1740137698606,154.19,0.000139,31]
[353915124,1740137698641,154.19,0.000139,31]
[353915125,1740137698679,154.19,0.000139,31]
[353915126,1740137698718,154.19,0.000139,31]
[353915127,1740137698755,154.19,0.000139,31]
[353915128,1740137698818,154.19,0.000139,31]
[353915129,1740137698940,154.19,0.000139,31]
[353915130,1740137698997,154.19,0.000139,31]
[353915131,1740137699060,154.19,0.000139,31]
[353915132,1740137699117,154.19,0.000139,31]
[353915134,1740138309373,152.39,0.000139,31]
[353915135,1740138309434,152.39,0.000139,31]
[353915136,1740138309496,152.39,0.000139,31]
[353915137,1740138309548,152.39,0.000139,31]
[353915138,1740138309661,152.39,0.000139,31]
[353915139,1740138309696,152.39,0.000139,31]
[353915140,1740138309734,152.39,0.000139,31]
[353915141,1740138309797,152.39,0.000139,31]
[353915142,1740138309854,152.39,0.000139,31]
[353915143,1740138309918,152.39,0.000139,31]
[353915144,1740138309982,152.39,0.000139,31]
[353915145,1740138310041,152.39,0.000139,31]
[353915146,1740138310099,152.39,0.000139,31]
[353915147,1740138310182,152.39,0.000139,31]
[353915148,1740138310233,152.39,0.000139,31]
[353915165,1740138631546,-550.0,0.0001,2]
[353915166,1740138631555,-440.09,0.00010038,2]
[353915167,1740138631564,-500.0,0.00011064,2]
[353915168,1740138631573,-500.0,0.00011064,2]
[353915169,1740138631582,-310.29922133,0.00011064,2]
[353915170,1740138631591,-4005.74125003,0.000115,2]
[353915171,1740138631600,-304.72,0.00011792,3]
[353915172,1740138631610,-171.28,0.00011918,2]
[353915173,1740138631620,-175.65,0.00011972,2]
[353915174,1740138631630,-1531.22370033,0.00012,2]
[353915175,1740138631639,-600.0,0.00012,2]
[353915176,1740138631649,-249.69,0.00012018,2]
[353915177,1740138631659,-150.0,0.00012137,2]
[353915178,1740138631668,-150.0,0.0001217,2]
[353915179,1740138631677,-150.0,0.00012198,2]
[353915180,1740138631686,-482.7994,0.00012199,2]
[353915181,1740138631696,-4152.97122711,0.00012199,2]
[353915182,1740138631789,-9104.85727289,0.00012199,2]
[353915183,1740138631800,-3705.94846511,0.00012199,2]
[353915184,1740138631811,-4826.25,0.00012199,2]
[353915185,1740138631822,-1363.02,0.00012199,2]
[353915186,1740138631832,-1231.85132041,0.00012199,2]
[353915187,1740138631843,-424.87953154,0.00012199,2]
[353915188,1740138631859,-12702.42917059,0.00012199,2]
[353915189,1740138631870,-18786.97224592,0.00012199,2]
[353915190,1740138631884,-500.0,0.00012199,2]
[353915365,1740138637587,-729.16926643,0.00012199,2]
[353915366,1740138637597,-179.54239644,0.000122,2]
[353915367,1740138637607,-2000.0,0.000123,2]
[353915368,1740138637616,-200.0,0.000123,2]
[353915369,1740138637625,-1000.0,0.000123,2]
[353915370,1740138637635,-440.22,0.000123,2]
[353915371,1740138637645,-440.09,0.00012302,2]
[353915372,1740138637654,-200.0,0.00012393,2]
[353915373,1740138637663,-621.87367782,0.000124,2]
[353915374,1740138637672,-61264.16212019,0.000124,2]
[353915375,1740138637681,-400.0,0.000124,4]
[353915376,1740138637690,-500.0,0.00012434,2]
[353915377,1740138637699,-500.0,0.00012434,2]
[353915378,1740138637708,-173.63,0.00012491,2]
[353915379,1740138637717,-900.0,0.000125,4]
[353915380,1740138637727,-164.491957,0.00012502,3]
[353915381,1740138637736,-1400.0,0.000126,4]
[353915382,1740138637745,-1800.0,0.000127,4]
[353915383,1740138637754,-179.54239644,0.00012702,2]
[353915384,1740138637763,-2300.0,0.000128,4]
[353915385,1740138637772,-400.0,0.000129,4]
[353915386,1740138637781,-2541.05954051,0.00012907,2]
[353915387,1740138637813,-3732.34705098,0.00012907,2]
[353915388,1740138637822,-153.5677047,0.00012933,2]
[353915389,1740138637832,-6273.4065914,0.00012939,2]
[353915390,1740138637841,-153.5677046,0.00012948,2]
[353915391,1740138637851,-153.5677046,0.00012963,2]
[353915392,1740138637860,-6273.4065914,0.00012972,2]
[353915393,1740138637869,-153.5677046,0.00012977,2]
[353915394,1740138637878,-153.5677046,0.00012992,2]
[353915395,1740138637887,-9001.37437234,0.00013,2]
[353915396,1740138637896,-6273.4065914,0.00013004,2]
[353915397,1740138637905,-153.5677046,0.00013007,2]
[353915399,1740138637915,-153.5677046,0.00013022,2]
[353915401,1740138637924,-359.4088,0.00013033,2]
[353915402,1740138637933,-153.5677046,0.00013036,2]
[353915404,1740138637943,-6273.4065914,0.00013037,2]
[353915406,1740138637953,-2500.0,0.0001305,2]
[353915408,1740138637962,-153.5677046,0.00013051,2]
[353915410,1740138637971,-153.5677046,0.00013066,2]
[353915412,1740138637980,-6273.4065914,0.00013069,2]
[353915414,1740138637989,-153.5677046,0.00013081,2]
[353915416,1740138637998,-153.5677046,0.00013096,2]
[353915418,1740138638008,-8870.60419151,0.00013098,2]
[353915420,1740138638017,-6273.4065914,0.00013102,2]
[353915422,1740138638026,-172.12666478,0.00013103,2]
[353915424,1740138638035,-153.5677046,0.0001311,2]
[353915426,1740138638045,-3130.31471,0.00013111,2]
[353915428,1740138638057,-153.5677046,0.00013125,2]
[353915430,1740138638066,-6273.4065914,0.00013134,2]
[353915432,1740138638075,-153.5677046,0.0001314,2]
[353915434,1740138638083,-5000.0,0.0001315,3]
[353915436,1740138638092,-153.5677046,0.00013155,2]
[353915438,1740138638102,-6273.4065914,0.00013167,2]
[353915440,1740138638111,-153.5677046,0.00013169,2]
[353915442,1740138638120,-153.5677046,0.00013184,2]
[353915444,1740138638129,-1000.0,0.00013194,2]
[353915446,1740138638138,-2307.63035524,0.00013198,2]
[353915610,1740138639642,-2866.59553672,0.00013198,2]
[353915611,1740138639750,-30621.92472245,0.00013198,2]
[353915613,1740138639761,-332.7439,0.00013198,2]
[353915621,1740138639823,-4208.14949987,0.00013198,2]
[353915647,1740138640069,-923.57410509,0.00013198,2]
[353915911,1740138642574,-948.09401731,0.00013198,2]
[353915949,1740138642987,-764.73312352,0.00013198,2]
[353915952,1740138643010,-5826.95480421,0.00013198,2]
[353915954,1740138643022,-38820.33550791,0.00013198,2]
[353915956,1740138643031,-153.5677046,0.00013199,2]
[353915958,1740138643040,-215.2551435,0.00013199,2]
[353915960,1740138643049,-210.94046205,0.00013199,2]
[353915962,1740138643061,-329.52547348,0.00013199,2]
[353915964,1740138643070,-5548.7369074,0.00013199,2]
[353915966,1740138643078,-305.19254748,0.00013199,2]
[353915968,1740138643087,-18529.89963738,0.00013199,2]
[353915969,1740138643097,-6273.4065914,0.00013199,2]
[353915971,1740138643107,-7500.0,0.00013199,2]
[353915973,1740138643116,-179.54239644,0.00013203,2]
[353915975,1740138643126,-1020.132,0.00013219,2]
[353915978,1740138643137,-500.0,0.00013273,2]
[353915980,1740138643146,-150.76,0.00013288,2]
[353915982,1740138643155,-150.76,0.00013288,2]
[353915983,1740138643164,-150.76,0.00013288,2]
[353915985,1740138643173,-150.76,0.00013288,2]
[353915987,1740138643182,-150.76,0.00013288,2]
[353915989,1740138643191,-150.76,0.00013288,2]
[353915991,1740138643201,-150.76,0.00013288,2]
[353915993,1740138643210,-150.76,0.00013288,2]
[353915995,1740138643220,-150.76,0.00013288,2]
[353915997,1740138643229,-150.76,0.00013288,2]
[353915999,1740138643237,-150.76,0.00013288,2]
[353916001,1740138643247,-150.76,0.00013288,2]
[353916003,1740138643257,-150.76,0.00013288,2]
[353916005,1740138643266,-150.76,0.00013288,2]
[353916007,1740138643275,-150.76,0.00013288,2]
[353916009,1740138643284,-150.76,0.00013288,2]
[353916011,1740138643294,-150.76,0.00013288,2]
[353916013,1740138643303,-150.76,0.00013288,2]
[353916015,1740138643313,-150.76,0.00013288,2]
[353916017,1740138643323,-150.76,0.00013288,2]
[353916019,1740138643333,-150.76,0.00013288,2]
[353916021,1740138643342,-150.76,0.00013288,2]
[353916023,1740138643351,-150.76,0.00013288,2]
[353916025,1740138643361,-150.76,0.00013288,2]
[353916027,1740138643370,-150.76,0.00013288,2]
[353916029,1740138643379,-150.76,0.00013288,2]
[353916031,1740138643387,-150.76,0.00013288,2]
[353916032,1740138643396,-150.76,0.00013288,2]
[353916034,1740138643406,-150.76,0.00013288,2]
[353916036,1740138643415,-150.76,0.00013288,2]
[353916038,1740138643424,-150.76,0.00013288,2]
[353916040,1740138643433,-150.76,0.00013288,2]
[353916042,1740138643442,-150.76,0.00013288,2]
[353916044,1740138643451,-150.76,0.00013288,2]
[353916046,1740138643460,-150.76,0.00013288,2]
[353916048,1740138643469,-150.76,0.00013288,2]
[353916050,1740138643479,-150.76,0.00013288,2]
[353916051,1740138643488,-150.76,0.00013288,2]
[353916053,1740138643497,-150.76,0.00013288,2]
[353916055,1740138643507,-150.76,0.00013288,2]
[353916057,1740138643517,-150.76,0.00013288,2]
[353916059,1740138643526,-150.76,0.00013288,2]
[353916061,1740138643536,-150.76,0.00013288,2]
[353916064,1740138643545,-150.76,0.00013288,2]
[353916066,1740138643555,-150.76,0.00013288,2]
[353916068,1740138643567,-150.76,0.00013288,2]
[353916070,1740138643576,-150.76,0.00013288,2]
[353916072,1740138643586,-150.76,0.00013288,2]
[353916074,1740138643595,-150.76,0.00013288,2]
[353916076,1740138643604,-150.76,0.00013288,2]
[353916078,1740138643614,-150.76,0.00013288,2]
[353916080,1740138643623,-150.76,0.00013288,2]
[353916082,1740138643633,-150.76,0.00013288,2]
[353916084,1740138643642,-150.76,0.00013288,2]
[353916086,1740138643651,-150.76,0.00013288,2]
[353916088,1740138643660,-150.76,0.00013288,2]
[353916089,1740138643669,-150.76,0.00013288,2]
[353916091,1740138643679,-150.76,0.00013288,2]
[353916093,1740138643688,-150.76,0.00013288,2]
[353916095,1740138643698,-150.76,0.00013288,2]
[353916098,1740138643707,-150.76,0.00013288,2]
[353916099,1740138643716,-150.76,0.00013288,2]
[353916101,1740138643726,-150.76,0.00013288,2]
[353916104,1740138643736,-150.76,0.00013288,2]
[353916105,1740138643745,-150.76,0.00013288,2]
[353916107,1740138643754,-150.76,0.0001329,2]
[353916109,1740138643763,-150.76,0.0001329,2]
[353916111,1740138643772,-150.76,0.0001329,2]
[353916113,1740138643781,-150.76,0.0001329,2]
[353916115,1740138643791,-150.76,0.0001329,2]
[353916117,1740138643799,-150.76,0.0001329,2]
[353916119,1740138643808,-150.76,0.0001329,2]
[353916121,1740138643818,-550.88426978,0.00013298,3]
[353916123,1740138643827,-7890.86135854,0.00013298,3]
[353916126,1740138643839,-3067.95902995,0.00013298,3]
[353916128,1740138643851,-2682.72728692,0.00013298,3]
[353916130,1740138643862,-350.95671319,0.00013298,3]
[353916132,1740138643873,-452.21561114,0.00013298,3]
[353916302,1740138645598,-413283.84728183,0.00013298,3]
[353916346,1740138646013,-80000.0,0.00013298,3]
[353916348,1740138646025,-1767.51234907,0.00013298,3]
[353916350,1740138646036,-316.8900289,0.00013298,3]
[353916354,1740138646062,-457.47433639,0.00013298,3]
[353916356,1740138646073,-1548.83410573,0.00013298,3]
[353916599,1740138918719,152.41,0.000139,31]
[353916600,1740138918785,152.41,0.000139,31]
[353916601,1740138918835,152.41,0.000139,31]
[353916602,1740138918955,152.41,0.000139,31]
[353916603,1740138919003,152.41,0.000139,31]
[353916604,1740138919038,152.41,0.000139,31]
[353916605,1740138919081,152.41,0.000139,31]
[353916606,1740138919145,152.41,0.000139,31]
[353916607,1740138919214,152.41,0.000139,31]
[353916608,1740138919264,152.41,0.000139,31]
[353916609,1740138919327,152.41,0.000139,31]
[353916610,1740138919388,152.41,0.000139,31]
[353916611,1740138919451,152.41,0.000139,31]
[353916612,1740138919508,152.41,0.000139,31]
[353916613,1740138933513,288.97,9.508e-05,2]
[353916621,1740139461728,2031.93240399,0.00013424,120]
[353916622,1740139526862,152.43,0.000139,31]
[353916623,1740139526927,152.43,0.000139,31]
[353916624,1740139526981,152.43,0.000139,31]
[353916625,1740139527037,152.43,0.000139,31]
[353916626,1740139527117,152.43,0.000139,31]
[353916627,1740139527167,152.43,0.000139,31]
[353916628,1740139527228,152.43,0.000139,31]
[353916630,1740139566471,500.0,0.00013424,30]
[353916631,1740139566705,500.0,0.00013698,30]
[353916632,1740139566985,500.0,0.00013972,30]
[353916642,1740139831767,-162.32,9.93e-05,2]
[353916643,1740139831777,-517.64,0.00010412,2]
[353916644,1740139831788,-500.0,0.00011064,2]
[353916645,1740139831797,-500.0,0.00011064,2]
[353916646,1740139831806,-150.0,0.00012058,2]
[353916647,1740139831815,-150.0,0.00012266,2]
[353916648,1740139831824,-935.0,0.00012267,2]
[353916649,1740139831833,-456.03875084,0.00012267,2]
[353916650,1740139831872,-99.57024916,0.00012267,2]
[353916651,1740139831881,-507.181,0.00012267,2]
[353916652,1740139831891,-802.0,0.00012267,2]
[353916653,1740139831899,-2672.47421726,0.00012267,2]
[353916654,1740139831925,-686.52578274,0.00012267,2]
[353916655,1740139831934,-150.0,0.00012267,2]
[353916656,1740139831943,-1151.0,0.00012267,2]
[353916657,1740139831951,-162.38,0.00012299,2]
[353916658,1740139831961,-150.0,0.00012447,2]
[353916659,1740139831970,-5071.15550737,0.0001253,2]
[353916660,1740139832085,-7167.16449263,0.0001253,2]
[353916661,1740139832094,-1000.0,0.00012583,2]
[353916662,1740139832103,-517.64,0.00012676,2]
[353916663,1740139832112,-1705.16633584,0.00013,4]
[353916664,1740139832122,-24893.30861713,0.00013,3]
[353916665,1740139832131,-500.0,0.00013091,2]
[353916666,1740139832140,-454.89449,0.0001316,2]
[353916667,1740139832149,-200.0,0.00013184,2]
[353916668,1740139832157,-816.106,0.00013198,2]
[353916669,1740139832166,-2000.0,0.000132,2]
[353916670,1740139832175,-7500.0,0.000132,2]
[353916671,1740139832184,-1042.8296,0.000132,2]
[353916672,1740139832193,-1569.49,0.0001328,2]
[353916673,1740139832202,-2000.0,0.0001329,3]
[353916674,1740139832212,-2000.0,0.00013298,3]
[353916675,1740139832221,-500.0,0.00013299,2]
[353916676,1740139832230,-500.0,0.00013299,2]
[353916677,1740139832239,-24645.40046439,0.000133,3]
[353916709,1740139837713,-2000.942007,0.000133,3]
[353916711,1740139837725,-2067.63408485,0.000133,3]
[353916712,1740139837737,-1209.95419617,0.000133,3]
[353916713,1740139837766,-725.84206697,0.000133,3]
[353916714,1740139837779,-2184.16175177,0.000133,3]
[353916715,1740139837821,-2655.99318303,0.000133,3]
[353916716,1740139837875,-3231.50064894,0.000133,3]
[353916717,1740139837888,-12073.477402,0.000133,3]
[353916718,1740139837900,-2227.18239382,0.000133,3]
[353916719,1740139837983,-40610.05406839,0.000133,3]
[353916728,1740139839973,-2100.05512954,0.000133,3]
[353916729,1740139839984,-4128.97177876,0.000133,3]
[353916730,1740139839995,-377.63072068,0.000133,3]
[353916731,1740139840024,-1935.32896013,0.000133,3]
[353916732,1740139840035,-157582.75678389,0.000133,3]
[353916733,1740139840500,-912.6863472,0.000133,3]
[353916734,1740139840512,-34604.24615185,0.000133,3]
[353916735,1740139842840,-379277.69500995,0.000133,3]
[353916736,1740139842851,-101435.80599575,0.000133,3]
[353916737,1740139842861,-367.0,0.000133,2]
[353916738,1740139842870,-748.0,0.000133,2]
[353916739,1740139842879,-925.0,0.000133,2]
[353916740,1740139842887,-980.0,0.000133,2]
[353916741,1740139842897,-179.54239644,0.00013324,2]
[353916742,1740139842906,-215.25514349,0.00013324,2]
[353916743,1740139842915,-200.0,0.00013416,2]
[353916744,1740139842924,-991.0,0.00013422,2]
[353916745,1740139842933,-500.0,0.00013423,2]
[353916746,1740139842942,-275.44213489,0.00013423,3]
[353916747,1740139842951,-772753.40089375,0.00013423,3]
[353916748,1740139843010,-610.54136975,0.00013423,3]
[353916749,1740139843086,-5219.12795026,0.00013423,3]
[353916750,1740139843097,-273.58173752,0.00013423,3]
[353916751,1740139843115,-1081.3857724,0.00013423,3]
[353916752,1740139843132,-628.81283036,0.00013423,3]
[353916757,1740139845719,-881.26860891,0.00013423,3]
[353916758,1740139845772,-631.25702881,0.00013423,3]
[353916759,1740139845826,-635.23809538,0.00013423,3]
[353916760,1740139845932,-1936.48435262,0.00013423,3]